bitfinex/quotes_SOLUSD_20250719
["timestamp","ask_amount","ask_price","bid_price","bid_amount"]
[1752928575330,0.06,176.33,176.32,183.19314435]
[1752928576288,0.06,176.33,176.32,205.88314435]
[1752928576492,0.06,176.33,176.32,200.21314435]
[1752928576977,0.06,176.33,176.32,197.08619032]
[1752928577163,0.06,176.33,176.32,200.21314435]
[1752928579891,0.06,176.35,176.33,82.75]
[1752928580093,0.06,176.35,176.34,77.73404034]
[1752928580394,0.06,176.35,176.34,78.45404034]
[1752928581999,0.06,176.35,176.34,84.12490344]
[1752928582587,0.06,176.35,176.34,100.90958741]
[1752928583986,0.06,176.35,176.34,200.67958741]
[1752928584188,0.06,176.35,176.34,200.1125011]
[1752928586705,0.06,176.35,176.34,205.7825011]
[1752928587297,0.06,176.35,176.34,200.1125011]
[1752928588894,0.06,176.37,176.34,200.1125011]
[1752928588895,0.06,176.37,176.36,159.47468397]
[1752928589103,0.06,176.37,176.36,202.641638]
[1752928589304,0.06,176.37,176.36,203.301638]
[1752928594808,0.06,176.37,176.36,203.201638]
[1752928595408,0.06,176.37,176.36,208.871858]
[1752928595791,0.06,176.37,176.36,203.201638]
[1752928597401,0.06,176.37,176.36,200.07468397]
[1752928597704,0.06,176.37,176.36,203.201638]
[1752928600327,0.06,176.37,176.36,200.07468397]
[1752928600545,0.06,176.37,176.36,203.201638]
[1752928601024,0.06,176.37,176.36,202.07237994]
[1752928602012,0.06,176.37,176.36,201.41237994]
[1752928602505,0.06,176.37,176.36,199.41468397]
[1752928602703,0.06,176.37,176.36,201.41237994]
[1752928603023,0.06,176.37,176.36,202.07237994]
[1752928603408,0.06,176.37,176.36,200.07468397]
[1752928603723,0.06,176.37,176.36,202.07237994]
[1752928605041,0.06,176.37,176.36,201.41237994]
[1752928605347,0.67,176.37,176.36,199.37468397]
[1752928605638,0.67,176.37,176.36,34.0]
[1752928605804,2.66769597,176.37,176.33,82.59]
[1752928606004,1.5922,176.36,176.34,40.0]
[1752928606327,0.61,176.35,176.31,82.62]
[1752928606624,1.99769597,176.32,176.31,82.62]
[1752928606824,2.60769597,176.32,176.31,122.62]
[1752928607208,8.27920232,176.32,176.31,40.03]
[1752928607930,9.87140232,176.32,176.31,40.03]
[1752928608133,17.8621862,176.32,176.31,40.03]
[1752928608529,9.87140232,176.32,176.31,40.03]
[1752928608912,11.0003958,176.32,176.31,40.03]
[1752928610136,7.87370635,176.32,176.31,40.03]
[1752928610344,14.12708525,176.32,176.31,40.03]
[1752928610634,14.12708525,176.32,176.31,0.03]
[1752928610635,20.25918525,176.32,176.31,0.03]
[1752928612738,20.25918525,176.32,176.3,0.03]
[1752928613030,3.12668945,176.3,176.27,40.05]
[1752928613350,10.32358273,176.28,176.27,0.03]
[1752928613720,10.93358273,176.28,176.27,0.03]
[1752928617239,10.93358273,176.28,176.25,0.03]
[1752928617453,12.24735886,176.25,176.2,40.02]
[1752928617616,6.2533789,176.22,176.2,40.02]
[1752928618337,6.8633789,176.22,176.2,40.02]
[1752928619410,12.53810367,176.22,176.2,40.02]
[1752928620471,0.61,176.22,176.2,40.02]
[1752928620626,3.73668945,176.22,176.2,40.02]
[1752928621020,9.41141422,176.22,176.2,40.02]
[1752928621626,3.12668945,176.22,176.2,40.02]
[1752928621839,0.61,176.24,176.2,40.02]
[1752928622143,3.12668945,176.22,176.2,40.02]
[1752928622441,3.73668945,176.22,176.2,40.02]
[1752928622634,0.61,176.24,176.2,40.02]
[1752928622831,19.85590286,176.27,176.2,40.02]
[1752928623033,3.12668945,176.25,176.2,151.73668945]
[1752928623332,3.12668945,176.25,176.22,0.67]
[1752928623535,7.80692917,176.28,176.22,0.67]
[1752928623837,3.12668945,176.25,176.22,0.67]
[1752928626632,3.12668945,176.25,176.23,40.02]
[1752928627048,3.12668945,176.24,176.23,40.02]
[1752928627841,3.12668945,176.25,176.23,40.02]
[1752928628729,3.12668945,176.24,176.21,0.03]
[1752928628938,3.12668945,176.22,176.21,0.03]
[1752928629154,3.12668945,176.22,176.21,40.05]
[1752928629521,3.73668945,176.22,176.21,40.05]
[1752928630026,3.12668945,176.22,176.21,40.05]
[1752928630455,5.67416877,176.24,176.21,40.05]
[1752928630640,3.12668945,176.22,176.21,40.05]
[1752928633045,5.67443345,176.23,176.21,40.05]
[1752928633239,3.12668945,176.22,176.21,40.05]
[1752928634657,5.67413949,176.24,176.21,40.05]
[1752928634862,3.12668945,176.22,176.21,40.05]
[1752928635058,5.67343499,176.27,176.21,40.72]
[1752928635356,3.12668945,176.24,176.22,0.67]
[1752928635740,3.12668945,176.27,176.23,3.79668945]
[1752928635949,3.12668945,176.27,176.24,40.69]
[1752928636148,3.73668945,176.3,176.25,3.79668945]
[1752928636454,8.79872753,176.31,176.26,3.79668945]
[1752928636658,8.79872753,176.31,176.27,40.69]
[1752928637754,3.12668945,176.29,176.27,40.02]
[1752928638061,3.73668945,176.28,176.24,108.59]
[1752928638259,3.12668945,176.26,176.25,40.0]
[1752928638661,3.12668945,176.27,176.25,40.0]
[1752928638850,3.12668945,176.28,176.25,40.0]
[1752928639050,8.79949484,176.28,176.25,40.0]
[1752928639772,3.12668945,176.27,176.25,40.0]
[1752928640143,0.61,176.3,176.25,40.0]
[1752928640144,5.67150635,176.32,176.26,3.79668945]
[1752928640345,5.67150635,176.32,176.27,0.67]
[1752928640568,8.7981958,176.32,176.28,40.0]
[1752928640738,8.7981958,176.32,176.29,0.67]
[1752928641052,3.12668945,176.32,176.3,0.67]
[1752928641365,3.12668945,176.32,176.31,40.0]
[1752928641668,3.18668945,176.32,176.31,40.0]
[1752928642153,3.79668945,176.32,176.31,40.0]
[1752928643053,9.4681958,176.32,176.31,40.0]
[1752928643367,9.4681958,176.32,176.3,40.0]
[1752928643561,3.73668945,176.31,176.3,40.0]
[1752928644764,9.40851748,176.31,176.3,40.0]
[1752928645061,8.79851748,176.31,176.3,40.0]
[1752928645280,3.12668945,176.31,176.3,40.0]
[1752928645840,5.73152889,176.32,176.3,40.66]
[1752928645841,3.18668945,176.32,176.3,40.66]
[1752928646042,8.85820906,176.32,176.3,40.66]
[1752928647578,3.18668945,176.32,176.3,40.66]
[1752928649084,3.18668945,176.32,176.31,0.66]
[1752928649743,8.8581958,176.32,176.3,40.0]
[1752928649959,3.12668945,176.31,176.3,40.0]
[1752928651163,8.79851748,176.31,176.3,40.0]
[1752928651955,8.79851748,176.31,176.3,39.98]
[1752928655190,9.40851748,176.31,176.3,39.98]
[1752928656670,8.79851748,176.31,176.3,39.98]
[1752928656880,8.79851748,176.31,176.3,40.64]
[1752928657268,8.79851748,176.31,176.3,39.98]
[1752928659681,8.79851748,176.31,176.3,40.64]
[1752928660190,8.79851748,176.31,176.3,39.98]
[1752928662288,3.12668945,176.31,176.3,39.98]
[1752928662490,3.12668945,176.31,176.3,40.64]
[1752928663071,3.18668945,176.32,176.3,40.64]
[1752928663371,8.85825943,176.32,176.31,0.66]
[1752928664185,8.85825943,176.32,176.3,39.98]
[1752928664382,3.12668945,176.31,176.3,40.64]
[1752928664783,8.79851748,176.31,176.3,40.64]
[1752928665182,3.12668945,176.31,176.3,40.64]
[1752928665381,5.73159604,176.32,176.3,40.64]
[1752928665582,8.85828549,176.32,176.3,39.98]
[1752928665895,8.85828549,176.32,176.31,0.66]
[1752928667374,0.06,176.32,176.31,3.78668945]
[1752928667792,0.06,176.35,176.32,52.38348397]
[1752928668098,0.06,176.35,176.34,29.12668945]
[1752928668305,0.06,176.35,176.34,111.71668945]
[1752928668481,0.06,176.35,176.34,112.37668945]
[1752928669079,0.06,176.35,176.34,109.25]
[1752928671814,0.06,176.35,176.34,112.37668945]
[1752928673273,0.06,176.35,176.34,109.25]
[1752928673470,0.06,176.35,176.34,112.37668945]
[1752928673981,0.06,176.35,176.34,109.25]
[1752928674180,0.06,176.35,176.34,149.19]
[1752928675899,0.06,176.35,176.34,109.25]
[1752928676100,0.06,176.35,176.34,149.19]
[1752928681510,3.18668945,176.35,176.34,148.53]
[1752928681675,3.85668945,176.35,176.34,82.59]
[1752928681989,3.85668945,176.35,176.34,122.51]
[1752928682176,9.52723098,176.35,176.34,122.51]
[1752928682587,9.52723098,176.35,176.34,39.92]
[1752928682992,8.85723098,176.35,176.34,39.92]
[1752928683303,0.06,176.35,176.34,40.59]
[1752928683493,3.18668945,176.35,176.34,40.59]
[1752928683697,3.18668945,176.35,176.34,39.92]
[1752928683994,8.85723098,176.35,176.34,39.92]
[1752928685109,9.52723098,176.35,176.34,39.92]
[1752928685924,8.85723098,176.35,176.34,39.92]
[1752928686905,8.85723098,176.35,176.32,0.67]
[1752928687094,3.12668945,176.34,176.33,39.92]
[1752928688212,3.12668945,176.34,176.33,40.59]
[1752928688904,8.79755255,176.34,176.33,39.92]
[1752928691308,9.46755255,176.34,176.33,39.92]
[1752928691508,8.79755255,176.34,176.33,39.92]
[1752928691806,9.46755255,176.34,176.33,39.92]
[1752928692109,9.46755255,176.34,176.3,39.95]
[1752928692410,3.12668945,176.31,176.3,0.03]
[1752928692593,6.2533789,176.31,176.3,0.03]
[1752928692799,19.8525241,176.3,176.26,39.95]
[1752928692995,3.12668945,176.27,176.26,39.95]
[1752928693195,3.79668945,176.27,176.26,39.95]
[1752928693402,3.79668945,176.27,176.26,0.03]
[1752928694791,3.12668945,176.27,176.26,0.03]
[1752928694991,8.79980455,176.27,176.26,0.03]
[1752928695313,8.79980455,176.27,176.26,0.7]
[1752928696599,3.12668945,176.27,176.26,0.7]
[1752928696916,3.12668945,176.27,176.26,0.03]
[1752928697127,8.79980455,176.27,176.26,0.03]
[1752928698714,3.12668945,176.27,176.26,0.03]
[1752928699019,3.12668945,176.27,176.26,0.7]
[1752928699816,8.79980455,176.27,176.26,0.03]
[1752928702424,8.79980455,176.27,176.26,0.7]
[1752928703204,3.12668945,176.27,176.26,0.7]
[1752928703909,5.6725233,176.29,176.26,0.7]
[1752928704229,3.12668945,176.28,176.27,39.9]
[1752928704596,3.12668945,176.28,176.27,40.55]
[1752928705319,3.12668945,176.29,176.27,40.55]
[1752928705819,8.79917598,176.29,176.28,0.65]
[1752928706823,3.12668945,176.29,176.28,0.65]
[1752928707318,3.12668945,176.29,176.27,40.55]
[1752928707628,3.12668945,176.28,176.27,40.55]
[1752928707824,3.12668945,176.28,176.27,39.9]
[1752928709227,8.79948273,176.28,176.27,39.9]
[1752928710725,5.67279328,176.28,176.27,39.9]
[1752928710913,8.79948273,176.28,176.27,39.9]
[1752928711921,5.67279328,176.28,176.27,39.9]
[1752928712122,8.79948273,176.28,176.27,39.9]
[1752928712626,5.67279328,176.28,176.27,39.9]
[1752928712817,3.12668945,176.28,176.27,40.55]
[1752928713853,5.67118471,176.33,176.27,40.55]
[1752928713854,14.17796177,176.33,176.27,40.55]
[1752928714019,3.12668945,176.3,176.28,0.65]
[1752928714340,3.12668945,176.3,176.26,0.03]
[1752928714341,3.12668945,176.3,176.29,40.55]
[1752928714832,8.79796585,176.33,176.29,40.55]
[1752928715036,8.79796585,176.33,176.3,0.65]
[1752928715336,3.12668945,176.33,176.31,39.9]
[1752928715522,3.12668945,176.33,176.31,40.55]
[1752928715720,5.73097435,176.34,176.31,39.9]
[1752928715922,3.18668945,176.34,176.32,0.65]
[1752928716223,0.06,176.34,176.33,39.88]
[1752928716407,0.06,176.34,176.33,40.53]
[1752928717842,0.06,176.34,176.33,39.88]
[1752928718040,3.18668945,176.34,176.33,39.88]
[1752928718913,8.85755255,176.34,176.33,39.88]
[1752928719833,8.85755255,176.34,176.29,82.59]
[1752928720037,3.12668945,176.31,176.3,39.88]
[1752928720933,3.12668945,176.32,176.3,40.53]
[1752928721317,3.12668945,176.32,176.31,0.65]
[1752928721511,3.12668945,176.33,176.31,0.65]
[1752928721712,8.85756557,176.34,176.32,39.88]
[1752928721937,3.18668945,176.34,176.32,40.53]
[1752928722138,3.18668945,176.34,176.33,0.65]
[1752928722334,8.85755255,176.34,176.33,0.65]
[1752928724646,3.18668945,176.34,176.33,0.65]
[1752928724945,0.06,176.34,176.33,0.65]
[1752928725571,0.06,176.34,176.33,86.36668945]
[1752928726539,0.06,176.34,176.33,120.37668945]
[1752928728435,0.06,176.34,176.33,117.25]
[1752928730942,0.06,176.34,176.33,34.66]
[1752928732245,0.06,176.34,176.33,138.13849189]
[1752928732549,0.06,176.34,176.33,137.57137342]
[1752928735425,0.06,176.34,176.33,83.65]
[1752928735748,0.06,176.34,176.33,123.49]
[1752928738025,0.06,176.34,176.33,122.84]
[1752928738751,3.18668945,176.34,176.33,122.84]
[1752928738932,3.85668945,176.34,176.3,83.0]
[1752928739246,3.12668945,176.32,176.31,39.84]
[1752928740857,8.79818293,176.33,176.31,39.84]
[1752928741646,3.12668945,176.32,176.31,39.84]
[1752928743262,8.79818293,176.33,176.31,39.84]
[1752928743440,8.79818293,176.33,176.31,40.55]
[1752928744863,3.12668945,176.33,176.31,40.55]
[1752928745168,0.06,176.34,176.33,26.0]
[1752928745340,0.06,176.34,176.33,204.03849189]
[1752928745541,0.06,176.34,176.33,203.47137342]
[1752928750052,0.06,176.34,176.33,179.01647342]
[1752928750251,0.06,176.34,176.33,185.42787342]
[1752928750872,0.06,176.34,176.33,200.32468397]
[1752928751059,0.06,176.34,176.33,148.82]
[1752928751365,3.18668945,176.34,176.33,39.82]
[1752928751545,3.18668945,176.34,176.31,83.0]
[1752928751546,3.85668945,176.34,176.31,83.0]
[1752928751746,3.12668945,176.32,176.3,0.03]
[1752928751954,3.12668945,176.31,176.3,39.85]
[1752928752667,0.06,176.34,176.3,39.85]
[1752928752872,3.12668945,176.33,176.31,0.71]
[1752928753081,3.12668945,176.33,176.32,39.82]
[1752928753271,0.06,176.34,176.32,40.53]
[1752928753569,8.85764153,176.34,176.32,39.82]
[1752928753771,3.12668945,176.33,176.32,39.82]
[1752928754362,9.46787416,176.33,176.32,39.82]
[1752928754864,9.46787416,176.33,176.31,39.82]
[1752928755177,3.79668945,176.32,176.31,39.82]
[1752928755671,6.9233789,176.32,176.3,0.03]
[1752928755873,6.9233789,176.31,176.3,0.03]
[1752928756451,12.59520693,176.31,176.3,0.03]
[1752928759264,9.46851748,176.31,176.3,0.03]
[1752928761665,12.59520693,176.31,176.3,0.03]
[1752928762274,16.78468397,176.3,176.27,0.03]
[1752928762482,3.12668945,176.28,176.27,0.03]
[1752928762687,3.12668945,176.27,176.26,0.03]
[1752928762858,3.79668945,176.27,176.26,0.03]
[1752928763360,9.46980455,176.27,176.26,0.03]
[1752928765480,9.46980455,176.27,176.26,1e-08]
[1752928768290,5.6731151,176.27,176.26,1e-08]
[1752928768587,8.79980455,176.27,176.26,1e-08]
[1752928770172,9.46980455,176.27,176.26,1e-08]
[1752928770993,8.79980455,176.27,176.26,1e-08]
[1752928777380,9.46980455,176.27,176.26,1e-08]
[1752928778200,8.79980455,176.27,176.26,1e-08]
[1752928782422,9.46980455,176.27,176.26,1e-08]
[1752928783512,8.79980455,176.27,176.26,1e-08]
[1752928783894,9.46980455,176.27,176.26,1e-08]
[1752928785891,8.79980455,176.27,176.26,1e-08]
[1752928787889,8.79980455,176.27,176.26,0.70000001]
[1752928789107,5.6731151,176.27,176.26,0.70000001]
[1752928789326,8.79980455,176.27,176.26,0.70000001]
[1752928789700,3.12668945,176.3,176.26,40.50000001]
[1752928789901,3.12668945,176.3,176.27,0.7]
[1752928790420,8.79851748,176.31,176.27,0.7]
[1752928791306,3.12668945,176.31,176.27,0.7]
[1752928791505,3.12668945,176.31,176.27,2.2752]
[1752928791710,3.12668945,176.31,176.28,0.7]
[1752928792203,8.79857741,176.31,176.28,0.7]
[1752928792413,3.12668945,176.29,176.28,0.7]
[1752928793002,0.66,176.29,176.26,83.00000001]
[1752928793193,5.67188796,176.31,176.26,83.00000001]
[1752928793194,9.45857741,176.31,176.26,83.00000001]
[1752928793401,3.12668945,176.27,176.26,83.69000001]
[1752928793809,8.79966848,176.28,176.26,83.69000001]
[1752928794116,8.79966848,176.28,176.27,0.69]
[1752928795295,8.79966848,176.28,176.26,83.00000001]
[1752928795537,3.12668945,176.27,176.26,83.00000001]
[1752928795905,8.79980455,176.27,176.26,1e-08]
[1752928796819,5.6731151,176.27,176.26,0.69000001]
[1752928797017,8.79980455,176.27,176.26,0.69000001]
[1752928797415,3.12668945,176.29,176.26,0.69000001]
[1752928797727,8.85858253,176.31,176.26,3.81668946]
[1752928798030,8.85858253,176.31,176.27,0.69]
[1752928798202,8.85858253,176.31,176.28,39.8]
[1752928798526,8.85858253,176.31,176.29,0.69]
[1752928798827,8.85858253,176.31,176.3,0.69]
[1752928799410,8.85858253,176.31,176.28,40.49]
[1752928799724,3.12668945,176.3,176.28,40.49]
[1752928800224,3.12668945,176.3,176.29,0.69]
[1752928800922,0.06,176.31,176.29,0.69]
[1752928801129,0.06,176.31,176.29,3.81668945]
[1752928801511,0.06,176.31,176.3,0.69]
[1752928802034,0.06,176.31,176.3,3.81668945]
[1752928802432,0.06,176.31,176.3,3.12668945]
[1752928802636,0.06,176.31,176.3,0.69]
[1752928803432,0.06,176.31,176.3,3.81668945]
[1752928804827,0.06,176.31,176.3,83.69]
[1752928805030,0.06,176.31,176.3,86.81668945]
[1752928805248,0.06,176.31,176.3,87.38390442]
[1752928805845,0.06,176.31,176.3,138.17858839]
[1752928806026,0.06,176.31,176.3,137.61137342]
[1752928806340,0.06,176.31,176.3,177.39137342]
[1752928813664,0.06,176.31,176.3,183.06352316]
[1752928814848,0.06,176.31,176.3,177.39137342]
[1752928815319,0.06,176.31,176.3,183.06352316]
[1752928817716,0.06,176.31,176.3,177.39137342]
[1752928820764,0.06,176.31,176.3,183.06352316]
[1752928822366,0.06,176.32,176.31,67.79468397]
[1752928822553,0.06,176.34,176.33,133.73468397]
[1752928822861,0.06,176.34,176.33,176.60137342]
[1752928823181,0.06,176.34,176.33,177.30137342]
[1752928823366,0.06,176.34,176.33,182.97255813]
[1752928823530,0.06,176.34,176.33,189.58155813]
[1752928826540,0.06,176.34,176.33,183.91037342]
[1752928827135,0.06,176.34,176.33,189.58155813]
[1752928834253,0.06,176.35,176.34,133.67468397]
[1752928834474,0.06,176.35,176.34,137.50137342]
[1752928834771,0.06,176.35,176.34,136.80137342]
[1752928834963,0.06,176.35,176.34,82.78]
[1752928835182,0.73,176.35,176.34,122.5]
[1752928835852,0.73,176.35,176.34,39.72]
[1752928836059,0.06,176.35,176.34,94.34137342]
[1752928836572,0.06,176.35,176.34,94.90845973]
[1752928839673,0.06,176.35,176.34,183.35932283]
[1752928839870,0.06,176.35,176.34,182.79223652]
[1752928840652,0.06,176.35,176.34,177.12137342]
[1752928840860,0.06,176.35,176.34,176.42137342]
[1752928841065,0.06,176.35,176.34,82.78]
[1752928841377,0.06,176.35,176.34,148.5]
[1752928841551,0.73,176.35,176.34,148.5]
[1752928841758,3.85668945,176.35,176.34,82.78]
[1752928841956,3.85668945,176.35,176.34,122.5]
[1752928842169,0.73,176.35,176.34,39.72]
[1752928842767,0.06,176.35,176.34,39.72]
[1752928844180,0.73,176.35,176.34,39.72]
[1752928844481,0.06,176.35,176.34,39.72]
[1752928845978,0.06,176.35,176.34,42.84668945]
[1752928846575,0.06,176.35,176.34,39.72]
[1752928847852,0.06,176.35,176.34,43.54668945]
[1752928848979,0.06,176.35,176.34,94.34137342]
[1752928852094,0.06,176.35,176.34,177.12137342]
[1752928852288,0.06,176.35,176.34,176.42137342]
[1752928852481,0.06,176.35,176.34,173.29468397]
[1752928852676,0.06,176.35,176.34,176.42137342]
[1752928853999,0.73,176.35,176.34,156.51]
[1752928854376,0.06,176.35,176.34,156.51]
[1752928854695,0.06,176.35,176.34,160.35668945]
[1752928856397,0.06,176.35,176.34,174.01468397]
[1752928856692,0.06,176.35,176.34,177.14137342]
[1752928858090,0.06,176.35,176.34,176.42137342]
[1752928858587,0.06,176.35,176.34,156.51]
[1752928859176,0.06,176.35,176.34,122.5]
[1752928860299,0.06,176.35,176.34,122.53]
[1752928860686,0.06,176.35,176.34,125.65668945]
[1752928860888,0.06,176.35,176.34,126.37668945]
[1752928861387,0.06,176.35,176.34,177.16137342]
[1752928861583,0.06,176.35,176.34,203.16137342]
[1752928865985,0.06,176.35,176.34,194.16137342]
[1752928866187,0.06,176.35,176.34,177.16137342]
[1752928870490,0.06,176.35,176.34,174.03468397]
[1752928870722,0.06,176.35,176.34,177.16137342]
[1752928871383,0.73,176.35,176.34,82.81]
[1752928871589,0.73,176.35,176.34,122.51]
[1752928871790,0.06,176.35,176.34,122.51]
[1752928872718,0.73,176.35,176.34,122.51]
[1752928873118,3.85668945,176.35,176.34,0.03]
[1752928873298,3.85668945,176.35,176.34,39.73]
[1752928874327,3.85668945,176.35,176.34,0.03]
[1752928874328,9.52723098,176.35,176.34,0.03]
[1752928883809,9.52723098,176.35,176.32,0.03]
[1752928884023,3.12668945,176.33,176.32,0.03]
[1752928884434,3.79668945,176.33,176.32,0.03]
[1752928884612,9.46787416,176.33,176.32,0.03]
[1752928887910,6.34118471,176.33,176.32,0.03]
[1752928888132,8.79787416,176.33,176.32,0.03]
[1752928888929,5.67098169,176.34,176.32,0.03]
[1752928889124,8.79767114,176.34,176.32,0.75]
[1752928889329,3.12668945,176.33,176.32,0.03]
[1752928890342,9.46787416,176.33,176.32,0.03]
[1752928890530,9.46787416,176.33,176.32,39.73]
[1752928890927,9.46787416,176.33,176.32,0.03]
[1752928891125,12.59456361,176.33,176.3,0.03]
[1752928891328,6.2533789,176.31,176.3,0.03]
[1752928891529,3.12668945,176.29,176.28,0.03]
[1752928892018,0.67,176.32,176.28,0.03]
[1752928892225,3.12668945,176.29,176.28,0.03]
[1752928892434,8.79916094,176.29,176.28,0.03]
[1752928893057,3.12668945,176.3,176.28,0.75]
[1752928894049,26.73,176.35,176.29,0.72]
[1752928894258,3.12668945,176.33,176.3,39.7]
[1752928894552,8.79755255,176.34,176.31,0.72]
[1752928894925,8.79755255,176.34,176.3,39.7]
[1752928894926,3.18668945,176.35,176.32,0.72]
[1752928895430,0.06,176.35,176.33,0.72]
[1752928895638,0.06,176.35,176.34,40.42]
[1752928896649,0.06,176.35,176.34,39.7]
[1752928897546,0.06,176.35,176.34,40.42]
[1752928899856,0.06,176.35,176.34,94.89845973]
[1752928900153,0.06,176.35,176.34,120.89845973]
[1752928900454,0.06,176.35,176.34,120.33137342]
[1752928902338,0.06,176.35,176.34,183.78347342]
[1752928902751,0.06,176.35,176.34,189.45433652]
[1752928910357,0.06,176.35,176.34,183.78347342]
[1752928912747,0.06,176.35,176.34,82.9]
[1752928913287,3.85668945,176.35,176.34,122.58]
[1752928913868,0.06,176.35,176.34,123.26]
[1752928914968,0.06,176.35,176.34,126.38668945]
[1752928915142,0.06,176.35,176.34,143.17137342]
[1752928915483,0.06,176.35,176.34,140.04468397]
[1752928915982,0.06,176.35,176.34,139.36468397]
[1752928917475,0.06,176.35,176.34,140.04468397]
[1752928918272,0.06,176.35,176.34,143.17137342]
[1752928919360,0.06,176.35,176.34,140.04468397]
[1752928920279,0.06,176.35,176.34,165.36468397]
[1752928920461,0.06,176.35,176.34,199.36468397]
[1752928921650,0.06,176.35,176.34,159.68468397]
[1752928921846,0.06,176.35,176.34,148.58]
[1752928922597,0.06,176.35,176.34,149.26]
[1752928923682,0.06,176.35,176.34,148.58]
[1752928926353,0.06,176.35,176.34,149.26]
[1752928926555,0.06,176.35,176.34,148.58]
[1752928927761,0.06,176.35,176.34,149.26]
[1752928928161,0.06,176.35,176.34,152.38668945]
[1752928929084,0.06,176.35,176.34,169.17137342]
[1752928930590,0.06,176.35,176.34,203.17137342]
[1752928932473,0.06,176.35,176.34,190.92633652]
[1752928932793,0.06,176.36,176.35,133.62468397]
[1752928932991,0.06,176.36,176.35,137.43137342]
[1752928933661,0.06,176.37,176.35,137.43137342]
[1752928933989,0.06,176.38,176.37,50.78468397]
[1752928934291,0.06,176.38,176.37,53.91137342]
[1752928934590,0.06,176.38,176.37,60.26127192]
[1752928935484,0.06,176.38,176.37,143.10127192]
[1752928935870,0.06,176.38,176.37,146.22796137]
[1752928937670,0.06,176.43,176.4,76.78468397]
[1752928937881,0.06,176.43,176.4,206.10495629]
[1752928938091,0.06,176.43,176.4,205.53806287]
[1752928938315,0.06,176.43,176.4,206.21806287]
[1752928938469,0.06,176.43,176.4,214.05366287]
[1752928939391,0.06,176.43,176.4,219.72259711]
[1752928939797,0.06,176.43,176.4,214.05366287]
[1752928940208,0.06,176.43,176.4,219.72259711]
[1752928941213,0.06,176.43,176.4,236.72259711]
[1752928941896,0.06,176.43,176.4,197.06259711]
[1752928942084,0.06,176.43,176.4,236.72259711]
[1752928942419,0.06,176.43,176.4,197.06259711]
[1752928942621,0.06,176.43,176.4,236.72259711]
[1752928943412,0.06,176.43,176.4,231.05366287]
[1752928943789,0.06,176.43,176.41,136.69137342]
[1752928943987,0.06,176.43,176.41,137.36137342]
[1752928944931,0.06,176.43,176.41,136.69137342]
[1752928945418,0.06,176.43,176.41,137.36137342]
[1752928949610,0.06,176.43,176.41,137.26137342]
[1752928952314,0.06,176.43,176.41,176.23137342]
[1752928952690,0.06,176.43,176.41,176.90137342]
[1752928953098,0.06,176.43,176.41,176.23137342]
[1752928953412,0.06,176.43,176.41,136.59137342]
[1752928953611,0.72,176.43,176.41,176.23137342]
[1752928953798,0.72,176.43,176.41,202.23137342]
[1752928954002,0.06,176.43,176.41,202.90137342]
[1752928954401,0.06,176.43,176.41,176.90137342]
[1752928956740,0.06,176.43,176.41,182.56998631]
[1752928961237,0.06,176.43,176.41,199.56998631]
[1752928961451,0.06,176.43,176.42,133.40468397]
[1752928961610,0.06,176.43,176.42,176.84137342]
[1752928966025,0.06,176.43,176.42,182.50966499]